Cogmind - Beta 17.1 @@@ ROGUE MODE // 2026.08.28 @ 22:55:03 Player: Finn Result: Destroyed by Y-45 Defender with Heavy Assault Rifle Performance ------------- Evolutions (2) 1000 Regions Visited (4) 800 Robots Destroyed (17) 85 Value Destroyed (457) 457 Prototype IDs (0) 0 Alien Tech Used (0) 0 Bonus (0) 0 TOTAL SCORE: 2342 Bonus ------- None Cogmind --------- Core Integrity 0/550 Matter 281/300 Energy 70/100 System Corruption 0% Temperature Cool (9) Movement Core (50) Location -8/Materials Parts ------- > --- POWER (1) -------- (None) > --- PROPULSION (4) --- (None) > --- UTILITY (4) ------ (None) > --- WEAPON (2) ------- (None) > --- INVENTORY (5) ---- Cesium-ion Thruster Welding Torch Peak State ------------ > --- POWER ------------ (None) > --- PROPULSION ------- Flight Unit Flight Unit Flight Unit Cesium-ion Thruster > --- UTILITY ---------- (None) > --- WEAPON ----------- Particle Gun > --- INVENTORY -------- Aluminum Leg Welding Torch [Rating: 8] Favorites ----------- Power Light Ion Engine Engine Light Ion Engine Propulsion Aluminum Leg Leg Aluminum Leg Wheel Compact Wheel Flight Unit Flight Unit Utility Seismic Detector Device Seismic Detector Weapon Light Assault Rifle Energy Gun EM Pulse Gun Ballistic Gun Light Assault Rifle Launcher Grenade Launcher Special Weapon Welding Torch Special Melee Weapon Datajack Build | -11 -10 -10 -10 -8 ------- Run | Yrd Mat Min Sub Mat Slots Evolved 4 | . . . . 4 Power . | . . . . . Propulsion 2 | . . . . 2 Utility 2 | . . . . 2 Weapon . | . . . . . Parts Attached 21 | 5 6 3 . 7 Power 1 | 1 . . . . Engine 1 | 1 . . . . Core . | . . . . . Reactor . | . . . . . Propulsion 11 | 2 2 1 . 6 Treads . | . . . . . Leg 4 | . 2 1 . 1 Wheel 2 | 2 . . . . Hover . | . . . . . Flight 5 | . . . . 5 Utility 1 | . . 1 . . Device 1 | . . 1 . . Storage . | . . . . . Processor . | . . . . . Hackware . | . . . . . Protection . | . . . . . Artifact . | . . . . . Weapon 8 | 2 4 1 . 1 Energy Gun 3 | . 2 1 . . Energy Cannon . | . . . . . Ballistic Gun 2 | 2 . . . . Ballistic Cannon . | . . . . . Launcher 1 | . 1 . . . Special Weapon 1 | . . . . 1 Impact Weapon . | . . . . . Slashing Weapon . | . . . . . Piercing Weapon . | . . . . . Special Melee Weapon 1 | . 1 . . . Unidentified Prototypes . | . . . . . Parts Lost 18 | . 6 4 . 8 Power 1 | . 1 . . . Propulsion 9 | . 2 1 . 6 Utility 1 | . . 1 . . Weapon 7 | . 3 2 . 2 Highest Loss Streak 6 | . 6 3 . 6 To Critical Strikes . | . . . . . Average Backups 2 | . 2 2 1 1 Power . | . . . . . Propulsion . | . . 1 1 1 Utility . | . . . . . Weapon 1 | . 1 1 . . Tool/Special . | . . . . . Unused Backups . | . . . . . Power . | . . . . . Propulsion . | . . . . . Utility . | . . . . . Weapon . | . . . . . Tool/Special . | . . . . . Average Slot Usage (%) 55 | . 60 56 57 33 Engine 4 | . 7 . . . Leg 12 | . 7 27 28 8 Wheel 9 | . 15 . . . Flight 1 | . . . . 13 Energy Gun 6 | . 7 2 14 8 Ballistic Gun 16 | . 20 20 . . Launcher 1 | . . 3 14 2 Peak Build Rating 8 | 5 5 5 5 8 Average Rating 4 | 3 4 4 5 5 On Entrance 3 | . 5 4 5 5 Avg Prop Armor Cover (%) . | . . . . . Naked Turns 7 | . 1 . . 6 Heaviest Build 7 | 6 7 6 6 6 Greatest Support 32 | 32 32 20 20 20 Greatest Overweight (x) 1 | . 1 . . . Average Overweight (x) . | . . . . . Largest Inventory Capacity 5 | 5 5 5 5 5 Average Capacity 5 | 5 5 5 5 5 Most Carried 5 | 4 4 4 1 5 Average Carried 2 | . 2 2 1 1 Final Capacity 5 | 5 5 5 5 5 Final Carried 2 | . 2 1 1 2 Class Distribution -------------------- 92% | Mutant 7% | Scavenger-Sprinter Dominant Class ---------------- Mutant | -10/Materials Mutant | -10/Mines Mutant | -10/Subcaves Scavenger-Sprinter | -8/Materials Resources | -11 -10 -10 -10 -8 ----------- Run | Yrd Mat Min Sub Mat Matter Collected 656 | 232 143 128 . 153 Remotely . | . . . . . Salvage Created 599 | . 240 199 . 160 Parts 31 | . 13 14 . 4 Haulers Intercepted . | . . . . . Recyclers Shooed 1 | . 1 . . . Parts Field Recycled . | . . . . . Retrieved Matter . | . . . . . Parts Self-Destructed . | . . . . . Prevented . | . . . . . Parts Restored . | . . . . . Kills | -11 -10 -10 -10 -8 ------- Run | Yrd Mat Min Sub Mat Combat Hostiles Destroyed 16 | . 7 7 . 2 Guns 9 | . 6 1 . 2 AOE 7 | . 1 6 . . Classes Destroyed 5 | . 3 1 . 1 Recycler 2 | . . . . 2 Watcher 1 | . 1 . . . Swarmer 4 | . 2 . . 2 Grunt 10 | . 5 5 . . Assembled 2 | . . 2 . . Best Kill Streak 4 | . 3 4 . 4 Combat Bots Only 4 | . 2 4 . 2 Max Kills in Single Turn 2 | . 2 1 . 1 Gunslinging . | . . . . . Exploded 1 | . 1 1 . . Melee . | . . . . . Uniques/NPCs Destroyed . | . . . . . Combat | -11 -10 -10 -10 -8 -------- Run | Yrd Mat Min Sub Mat Hostile Shots Fired 188 | . 45 49 . 94 Missed 74 | . 14 19 . 41 Hits 114 | . 31 30 . 53 Melee 2 | . . 2 . . Projectile 112 | . 31 28 . 53 Part Disruptions 1 | . . 1 . . Damage Taken 1738 | . 411 487 . 840 Core 778 | . 126 98 . 554 Absorbed by Shields . | . . . . . Core Remaining (%) 55 | 100 . . 10 . Volleys Fired 60 | . 28 22 . 10 Largest 2 | . 2 2 . 2 Hottest 95 | . 80 95 . 95 Shots Fired 100 | . 51 36 . 13 Gun 82 | . 46 26 . 10 Cannon . | . . . . . Launcher 16 | . 5 10 . 1 Special 2 | . . . . 2 Kinetic 50 | . 25 25 . . Thermal 13 | . . 1 . 12 Explosive 16 | . 5 10 . 1 Electromagnetic 21 | . 21 . . . Robot Hit Streak 7 | . 6 4 . 7 Robot Miss Streak 4 | . 4 2 . 2 Penetration Max . | . . . . . Secondary Targets 1 | . 1 . . . Max Gunslinging Chain 1 | . 1 . . . Shots Hit Robots 52 | . 27 17 . 8 Core Hits 37 | . 18 15 . 4 Critical Kills . | . . . . . Critical Parts Destroyed 1 | . 1 . . . Critical Strikes 2 | . 2 . . . Destroy 1 | . 1 . . . Corrupt 1 | . 1 . . . Melee Attacks 1 | . 1 . . . Impact . | . . . . . Slashing . | . . . . . Piercing . | . . . . . Sneak Attacks . | . . . . . Combat Hostiles . | . . . . . Follow-up Attacks . | . . . . . Damage Inflicted 1043 | . 476 414 . 153 Guns 520 | . 296 125 . 99 Cannons . | . . . . . Explosions 512 | . 175 289 . 48 Melee . | . . . . . Ramming 5 | . 5 . . . Kinetic 244 | . 119 125 . . Thermal 105 | . . . . 105 Explosive 512 | . 175 289 . 48 Electromagnetic 177 | . 177 . . . Impact . | . . . . . Slashing . | . . . . . Piercing . | . . . . . Highest Corruption 2 | . 2 2 2 . Average Corruption 2 | . 2 2 2 . Corruption Purged . | . . . . . Corruption Blocked . | . . . . . Effects 8 | . 4 4 . . Message Errors 4 | . 3 1 . . Matter Fused 1 | . . 1 . . Heat Flow Errors 1 | . 1 . . . Data Loss (minor) 1 | . . 1 . . Weapon Failures 1 | . . 1 . . Overload Shots . | . . . . . Overflow Damage 33 | . 23 10 . . Projectiles . | . . . . . Explosions 33 | . 23 10 . . Melee . | . . . . . Knockbacks . | . . . . . Impact . | . . . . . Kinetic . | . . . . . Secondary . | . . . . . Self-Inflicted Damage 150 | . 15 105 . 30 Shots 6 | . 1 4 . 1 Rammed 2 | . 2 . . . Targets Rammed 2 | . 2 . . . Kicked . | . . . . . Crushed . | . . . . . Highest Temperature 159 | . 159 20 . 30 Average Temperature 40 | . 55 10 . 11 Received Heat Transfer 551 | . 204 239 . 108 Siege Activations . | . . . . . Martial Activations . | . . . . . Shielding Activations . | . . . . . Robots Disrupted . | . . . . . Combat Hostiles . | . . . . . Robots Corrupted . | . . . . . Combat Hostiles . | . . . . . Parts Fried 1 | . 1 . . . Impact Corruptions . | . . . . . Robots Melted . | . . . . . Combat Hostiles . | . . . . . Parts Melted 1 | . . . . 1 Heat Transferred 272 | . . . . 272 Parts Sabotaged . | . . . . . Parts Stolen . | . . . . . Parts Stripped . | . . . . . Power Chain Reactions . | . . . . . Alert | -11 -10 -10 -10 -8 ------- Run | Yrd Mat Min Sub Mat Maximum Alert Level . | . . . . . Low Security (%) 100 | 100 100 100 . 100 Level 1 . | . . . . . Level 2 . | . . . . . Level 3 . | . . . . . Level 4 . | . . . . . Level 5 . | . . . . . High Security . | . . . . . Max Security . | . . . . . Peak Influence 88 | . 63 88 . 55 Initial 8 | . . 4 . 8 Average 15 | . 15 17 . 16 Influence Increases 541 | . 263 143 . 135 Destroy 0b10 Robot/C 280 | . 140 100 . 40 Destroy 0b10 Robot/NC 15 | . 5 . . 10 Destroy Leader 42 | . 32 10 . . Successful Hack 9 | . 9 . . . Disable Machine 15 | . 15 . . . Destroy Structure 75 | . 32 33 . 10 Lose Combat Pursuer 105 | . 30 . . 75 Influence Decreases 541 | . 250 98 41 152 Entered New Map 49 | . . 9 31 9 Time Decay 374 | . 197 89 10 78 Lost Part 118 | . 53 . . 65 Squads Dispatched 3 | . 2 . . 1 Investigation 1 | . 1 . . . Extermination . | . . . . . Reinforcement 2 | . 1 . . 1 Assault . | . . . . . Garrison . | . . . . . Intercept . | . . . . . Searches Triggered . | . . . . . Construction Impeded 1 | . . . . 1 Haulers Reinforced . | . . . . . Active Scanning Responses . | . . . . . Cargo Convoy Interrupts . | . . . . . Stealth | -11 -10 -10 -10 -8 --------- Run | Yrd Mat Min Sub Mat Distress Signals 2 | . . . . 2 Communications Jammed . | . . . . . Distress Signals . | . . . . . Times Spotted 47 | . 17 8 . 22 Peak Tracking Total 11 | . 3 4 . 11 Tactical Retreats 3 | . 1 . . 2 Traps | -11 -10 -10 -10 -8 ------- Run | Yrd Mat Min Sub Mat Traps Triggered 2 | . 2 . . . Indirectly . | . . . . . Trap Hack Attempts . | . . . . . Triggered . | . . . . . Disarmed . | . . . . . Reprogrammed . | . . . . . Reused . | . . . . . Traps Extracted . | . . . . . Installed . | . . . . . Triggered . | . . . . . Machines | -11 -10 -10 -10 -8 ---------- Run | Yrd Mat Min Sub Mat Machines Disabled 1 | . 1 . . . Max in Single Turn 1 | . 1 . . . Machines Repaired . | . . . . . Machines Dismantled . | . . . . . Machines Sabotaged . | . . . . . Overloaded Fab Kills . | . . . . . Hacking | -11 -10 -10 -10 -8 --------- Run | Yrd Mat Min Sub Mat Machines Accessed 4 | . 4 . . . Terminals 3 | . 3 . . . Fabricators . | . . . . . Repair Stations . | . . . . . Recycling Units 1 | . 1 . . . Scanalyzers . | . . . . . Garrison Access . | . . . . . Total Hacks 4 | . 4 . . . Successful 3 | . 3 . . . Failed 1 | . 1 . . . Catastrophic 1 | . 1 . . . Database Lockouts . | . . . . . Manual . | . . . . . Terminals 3 | . 3 . . . Fabricators . | . . . . . Repair Stations . | . . . . . Recycling Units 1 | . 1 . . . Scanalyzers . | . . . . . Garrison Access . | . . . . . Terminal Hacks 2 | . 2 . . . Emergency Access Points 1 | . 1 . . . Zone Layout 1 | . 1 . . . Fabricator Hacks . | . . . . . Repair Station Hacks . | . . . . . Recycling Unit Hacks 1 | . 1 . . . Report Inventory 1 | . 1 . . . Scanalyzer . | . . . . . Garrison Access Hacks . | . . . . . Unauthorized Hacks . | . . . . . Terminals . | . . . . . Fabricators . | . . . . . Repair Stations . | . . . . . Recycling Units . | . . . . . Scanalyzers . | . . . . . Garrison Access . | . . . . . Data Cores Recovered . | . . . . . Used . | . . . . . Hacking Detections 1 | . 1 . . . Full Trace Events . | . . . . . Feedback Events . | . . . . . Feedback Blocked . | . . . . . Robot Schematics Acquired . | . . . . . Robots Built . | . . . . . Authchips . | . . . . . Time . | . . . . . Total Robot Build Rating . | . . . . . Part Schematics Acquired . | . . . . . Parts Built . | . . . . . Authchips . | . . . . . Time . | . . . . . Total Part Build Rating . | . . . . . Part Studies Acquired . | . . . . . Parts Repaired . | . . . . . Time . | . . . . . Parts Recycled . | . . . . . Recycled Matter . | . . . . . Retrieved Matter . | . . . . . Retrieved Components . | . . . . . Parts Scanalyzed . | . . . . . Part Schematics Acquired . | . . . . . Parts Damaged . | . . . . . Bothacking | -11 -10 -10 -10 -8 ------------ Run | Yrd Mat Min Sub Mat Used RIF Installer . | . . . . . Robots Hacked 1 | . 1 . . . Non-combat . | . . . . . Combat 1 | . 1 . . . Robot Hacks Applied 1 | . 1 . . . parse_system 1 | . 1 . . . Relay Couplers Released . | . . . . . Fabnet Peak Effective % . | . . . . . Robots Rewired . | . . . . . Allies Hacked . | . . . . . Hacks Repelled . | . . . . . Allies | -11 -10 -10 -10 -8 -------- Run | Yrd Mat Min Sub Mat Total Allies . | . . . . . Largest Group . | . . . . . Highest-Rated Group . | . . . . . Highest-Rated Ally . | . . . . . Total Orders . | . . . . . Ally Attacks . | . . . . . Total Damage . | . . . . . Kills . | . . . . . Allies Corrupted . | . . . . . Allies Melted . | . . . . . Intel | -11 -10 -10 -10 -8 ------- Run | Yrd Mat Min Sub Mat Active Infowar (turns) 53 | . . 53 . . Seismic 53 | . . 53 . . Robot Analysis Total . | . . . . . Derelict Logs Recovered . | . . . . . Drone Launches . | . . . . . Drone Recoveries . | . . . . . Exploration | -11 -10 -10 -10 -8 ------------- Run | Yrd Mat Min Sub Mat Turns Passed 1549 | 47 923 341 32 206 Spaces Moved 1232 | 42 768 197 27 198 Core 207 | 9 186 . . 12 Treads . | . . . . . Legs 456 | . 162 197 27 70 Wheels 453 | 33 420 . . . Hover . | . . . . . Flight 116 | . . . . 116 Fastest Speed 29 | 50 50 120 120 29 Average Speed 92 | 89 92 120 120 63 Slowest Speed 120 | 100 120 120 120 120 Overloaded Moves . | . . . . . Propulsion Burnouts . | . . . . . Robots Hopped . | . . . . . Potential Cave-ins . | . . . . . Cave-ins Triggered . | . . . . . Exploration Rate (%) 29 | 3 84 36 2 21 Regions Visited 4 Branch Regions 2 Pre-discovered Areas . | . . . . . Known Exits Taken . | . . . . . Unknown Exits Taken 4 | 1 1 1 1 . Scrap Searched 1 | . . 1 . . Spaces Dug . | . . . . . Terrain Destroyed 81 | . 34 37 . 10 Melee . | . . . . . Projectile . | . . . . . AOE 81 | . 34 37 . 10 Terrain Rammed . | . . . . . Walls Destroyed . | . . . . . Machines Disabled . | . . . . . Actions | -11 -10 -10 -10 -8 --------- Run | Yrd Mat Min Sub Mat Total 1539 | 51 931 267 26 264 Wait 195 | . 115 40 . 40 Move 1228 | 41 767 196 26 198 Hop . | . . . . . Pick Up 21 | 5 7 3 . 6 Fast Attach 1 | . . . . 1 Attach 19 | 5 5 4 . 5 Detach . | . . . . . Swap 10 | . 6 2 . 2 Drop 2 | . . . . 2 Fire 60 | . 28 22 . 10 Melee 1 | . 1 . . . Ram 2 | . 2 . . . Kick . | . . . . . Crush . | . . . . . Escape Stasis . | . . . . . Rewire . | . . . . . Trap . | . . . . . Miscellaneous . | . . . . . Route ------- -11/Scrapyard -10/Materials (discovered 5 exits: [*Mat x3] / [*Min x2]) -10/Mines -10/Subcaves -8/Materials History --------- Turn | Location | Event 8 | -11/Scrapyard | Discovered new exit (range 15) 48 | -11/Scrapyard | Entered Materials 185 | -10/Materials | Discovered new exit (range 3) 315 | -10/Materials | Build established: Mutant 375 | -10/Materials | Discovered new exit (range 5) 384 | -10/Materials | Discovered new exit (range 16) 491 | -10/Materials | Discovered new exit (range 20) 607 | -10/Materials | Lost 6 parts (1p2n3w) 809 | -10/Materials | Core integrity fell below 50% 932 | -10/Materials | Discovered new exit (range 7) 971 | -10/Materials | Entered Mines 1033 | -10/Mines | Discovered new exit (range 4) 1097 | -10/Mines | Excavation squad dispatched 1097 | -10/Mines | A large section of the Mines collapsed 1242 | -10/Mines | Core integrity fell below 20% 1269 | -10/Mines | Lost 3 parts (1u2w) 1312 | -10/Mines | Entered Subcaves 1312 | -10/Subcaves | Discovered new exit (range 11) 1313 | -10/Subcaves | Approached by a straggling Scientist 1344 | -10/Subcaves | Entered Materials 1344 | -8/Materials | Evolved 4 slots: Propulsion x2, Utility x2 1532 | -8/Materials | Core integrity fell below 50% 1544 | -8/Materials | Core integrity fell below 20% 1550 | -8/Materials | Destroyed by Y-45 Defender with Heavy Assault Rifle Last Messages --------------- 01516_ S-10 Pest unfolds itself. 01523_ Flight Unit destroyed. 01525_ Penetrated by Slug. 01525_ W-25 Informer destroyed. 01526_ Flight Unit destroyed. 01527_ S-10 Pest destroyed. 01529_ Cesium-ion Thruster destroyed. 01529_ Knocked back. 01530_ Particle Gun destroyed. 01532_ Flight Unit destroyed. 01533_ Knocked back. 01533_ Acquired Cesium-ion Thruster. 01537_ Knocked back. 01541_ S-10 Pest destroyed. 01543_ K-01 Serf collects debris. 01547_ Aluminum Leg destroyed. 01547_ Knocked back. 01547_ K-01 Serf collects debris. 01547_ S-10 Pest destroyed. 01548_ W-25 Informer sends out distress signal. Map ----- +----------------------------------------------------+ | ##"""" / #???? | | + """ #%* #???? | | ## """ # % #???? | | ###### ##########+### ## """ # = #???? | | ?????###+###??# ######## # % #???? | | ??????????????# #??????# # [ ##### | | ??????????????# """ """ #??????########### # | | ??????????????# """ """ #????????????????+ + | | ??????????????# """ """ #????????????????# # | | ??????????????# #????????????????# # ! | | ??????????????# #????????????????# # ! | | ??????????????# [ #????????????????# %# | | ??????????????###########????????????????# # | | ?????????????????????????????????????????# # | | ?????????????????????????????????????????# ##### | | ?????????????????????????????????????????# #???? | | ?????????????????????????????????????????# #???? | | ?????????????????????#######????????????## ##??? | | ?????????????????????# ###########"## #??? | | ?????????????????????# % = H% #??? | | ?????????????????????+ %= [%% +??? | | ?????????????????????# [ = #??? | | ?????????????????????# ############## #??? | | ?????????????????????## ##????????????###%###??? | | ??????????????????????# #????????????????/#????? | | ??????????????????????# @#???????????????? ????? | | ??????????????????????# #????????????????" #???? | | ??????????????????????#w #????????????????" #???? | | ??????????????????????# #????????????????" #???? | | ??????????????????????# #???????????????? +???? | | ?????????????????????? ????????????????? #???? | | ?????????????????????# Y ????????????????? +???? | | ????????????????????? ??????????????????#???? | | ????????????????????## ??????????????????????? | | ?????????????????????# ??????????????????????? | | ?????????????????????## ??????????????????????? | | ??????????????????????# ??????????????????????? | | ??????????????????????#! ??????????????????????? | | ??????????????????????##!!!??????????????????????? | | ????????????????????????###??????????????????????? | | ?????????????????????????????????????????????????? | | ?????????????????????????????????????????????????? | | ?????????????????????????????????????????????????? | | ?????????????????????????????????????????????????? | | ?????????????????????????????????????????????????? | | ?????????????????????????????????????????????????? | | ?????????????????????????????????????????????????? | | ?????????????????????????????????????????????????? | | ?????????????????????????????????????????????????? | | ?????????????????????????????????????????????????? | +----------------------------------------------------+ Best States ------------- Heat Dissipation 31 Energy Generation 10 Energy Capacity 125 Matter Stores 300 Matter Capacity 300 Sight Range 16 Terrain Scan Density 10 Evasion (%) 64 Item Schematics ----------------- None Robot Schematics ------------------ None Fabricated ------------ Nothing Repaired ---------- Nothing Studied --------- None Alien Tech Used ----------------- None Achievements -------------- None Challenges ------------ None Game ------ Seed WaveHardcellTurbovents Manual? 0 Play Time 00:15:50 Cumulative 18.1 hours Start 2026.08.28 @ 22:42:02 End 2026.08.28 @ 22:55:03 Sessions 1 Manual Loads 0 Difficulty Rogue Special Mode None Game No. 37 Rogue 20 Adventurer 15 Explorer 2 Win Type - Total 0 Types 0/0/0/0/0/0/0/0/0/0 Lore% 20 Gallery% 19 Achievement% 15 Wizard Run 0 Options --------- Layout 1 ASCII 0 Keyboard 0 Movement Mouse Keybinds 0 Fullscreen 1 Font 24/Smallcaps Map View 50x35 Zoom Use 0% Tactical HUD 1 Map Filters NONE Filters NONE Steam 1 RUN: d566f850-abc8-4375-be87-019766713a51